fUSD/lending_fUSD_20250107
["ID","MTS","AMOUNT","RATE_DAILY","PERIOD"]
[347972005,1736256644218,-500.0,9.767e-05,2]
[347972006,1736256644227,-657.96,9.767e-05,2]
[347972007,1736256644237,-500.0,9.767e-05,2]
[347972008,1736256644246,-915.06,9.767e-05,2]
[347972009,1736256644256,-4941.45,9.767e-05,2]
[347972010,1736256644267,-1482.53,9.767e-05,2]
[347972011,1736256644279,-560.9,9.767e-05,2]
[347972012,1736256644288,-500.0,9.767e-05,2]
[347972013,1736256644298,-500.0,9.767e-05,2]
[347972014,1736256644307,-500.0,9.767e-05,2]
[347972015,1736256644316,-5622.61,9.767e-05,2]
[347972016,1736256644326,-519.96,9.767e-05,2]
[347972017,1736256644335,-2349.8,9.767e-05,2]
[347972018,1736256644344,-953.49,9.767e-05,2]
[347972019,1736256644354,-500.0,9.767e-05,2]
[347972020,1736256644363,-500.0,9.767e-05,2]
[347972021,1736256644373,-1987.8,9.767e-05,2]
[347972022,1736256644382,-1576.21,9.767e-05,2]
[347972023,1736256644391,-2367.34,9.767e-05,2]
[347972024,1736256644401,-3179.75,9.767e-05,2]
[347972025,1736256644410,-817.92,9.767e-05,2]
[347972026,1736256644419,-4154.12,9.767e-05,2]
[347972027,1736256644428,-1162.36,9.767e-05,2]
[347972028,1736256644438,-165.18439994,9.767e-05,2]
[347972029,1736256644447,-8069.91,9.767e-05,2]
[347972030,1736256644457,-597.85,9.767e-05,2]
[347972031,1736256644466,-507.71,9.767e-05,2]
[347972032,1736256644475,-3706.15,9.767e-05,2]
[347972033,1736256644484,-500.0,9.767e-05,2]
[347972034,1736256644494,-1550.78,9.767e-05,2]
[347972035,1736256644503,-6996.23,9.767e-05,2]
[347972036,1736256644512,-2156.23,9.767e-05,2]
[347972037,1736256644523,-500.0,9.767e-05,2]
[347972038,1736256644533,-7209.44,9.767e-05,2]
[347972039,1736256644542,-20038.01,9.767e-05,2]
[347972040,1736256644552,-531.53,9.767e-05,2]
[347972041,1736256644563,-500.0,9.767e-05,2]
[347972042,1736256644573,-1358.86,9.767e-05,2]
[347972043,1736256644582,-1685.94,9.767e-05,2]
[347972044,1736256644592,-2351.33,9.767e-05,2]
[347972045,1736256644601,-1210.26,9.767e-05,2]
[347972046,1736256644610,-506.49,9.767e-05,2]
[347972047,1736256644620,-3929.39,9.767e-05,2]
[347972048,1736256644629,-3610.27,9.767e-05,2]
[347972049,1736256644639,-500.0,9.767e-05,2]
[347972050,1736256644648,-2180.2,9.767e-05,2]
[347972051,1736256644658,-1988.04,9.767e-05,2]
[347972052,1736256644667,-2527.23,9.767e-05,2]
[347972053,1736256644676,-738.94,9.767e-05,2]
[347972054,1736256644686,-588.35,9.767e-05,2]
[347972055,1736256644695,-881.32,9.767e-05,2]
[347972056,1736256644705,-2631.73,9.767e-05,2]
[347972057,1736256644714,-6477.18,9.767e-05,2]
[347972058,1736256644723,-500.0,9.767e-05,2]
[347972059,1736256644733,-1555.51,9.767e-05,2]
[347972060,1736256644743,-502.15013176,9.767e-05,2]
[347972061,1736256644752,-6472.99,9.767e-05,2]
[347972062,1736256644761,-150.292047,9.767e-05,2]
[347972063,1736256644770,-500.0,9.767e-05,2]
[347972064,1736256644780,-9221.98,9.767e-05,2]
[347972065,1736256644789,-2050.12,9.767e-05,2]
[347972066,1736256644799,-12099.8,9.767e-05,2]
[347972067,1736256644808,-500.0,9.767e-05,2]
[347972068,1736256644818,-500.0,9.767e-05,2]
[347972069,1736256644827,-500.0,9.767e-05,2]
[347972070,1736256644837,-500.0,9.767e-05,2]
[347972071,1736256644846,-163.179629,9.767e-05,2]
[347972072,1736256644855,-3047.45,9.767e-05,2]
[347972073,1736256644865,-1174.15,9.767e-05,2]
[347972074,1736256644874,-931.35,9.767e-05,2]
[347972075,1736256644883,-950.67,9.767e-05,2]
[347972076,1736256644893,-155.490197,9.767e-05,2]
[347972077,1736256644902,-1749.05,9.767e-05,2]
[347972078,1736256644911,-1941.25,9.767e-05,2]
[347972079,1736256644920,-500.0,9.767e-05,2]
[347972080,1736256644929,-1343.59,9.767e-05,2]
[347972081,1736256644939,-8096.62,9.767e-05,2]
[347972082,1736256644949,-5841.12,9.767e-05,2]
[347972083,1736256644957,-1941.41,9.767e-05,2]
[347972084,1736256644967,-500.0,9.767e-05,2]
[347972085,1736256644976,-500.9513178,9.767e-05,2]
[347972086,1736256644985,-511.04,9.768e-05,2]
[347972087,1736256644995,-500.0,9.768e-05,2]
[347972088,1736256645004,-500.0,9.768e-05,2]
[347972089,1736256645013,-500.0,9.768e-05,2]
[347972090,1736256645023,-500.0,9.768e-05,2]
[347972091,1736256645032,-385.37580622,9.768e-05,2]
[347972092,1736256645041,-500.0,9.768e-05,2]
[347972093,1736256645051,-500.0,9.768e-05,2]
[347972094,1736256645060,-611.37,9.768e-05,2]
[347972095,1736256645069,-500.0,9.768e-05,2]
[347972096,1736256645081,-500.0,9.768e-05,2]
[347972097,1736256645091,-714.81,9.768e-05,2]
[347972098,1736256645101,-500.0,9.768e-05,2]
[347972099,1736256645111,-500.0,9.768e-05,2]
[347972100,1736256645120,-500.0,9.768e-05,2]
[347972101,1736256645130,-500.0,9.768e-05,2]
[347972102,1736256645139,-500.0,9.768e-05,2]
[347972103,1736256645148,-618.4,9.768e-05,2]
[347972104,1736256645158,-580.94,9.768e-05,2]
[347972105,1736256645168,-913.3,9.768e-05,2]
[347972106,1736256645177,-500.0,9.768e-05,2]
[347972107,1736256645186,-500.0,9.768e-05,2]
[347972108,1736256645195,-679.19,9.768e-05,2]
[347972109,1736256645205,-528.64,9.768e-05,2]
[347972110,1736256645214,-500.0,9.768e-05,2]
[347972111,1736256645223,-500.0,9.768e-05,2]
[347972112,1736256645232,-500.0,9.768e-05,2]
[347972113,1736256645242,-500.0,9.768e-05,2]
[347972114,1736256645251,-579.02,9.768e-05,2]
[347972115,1736256645261,-500.0,9.768e-05,2]
[347972116,1736256645274,-517.29,9.768e-05,2]
[347972117,1736256645283,-613.54382263,9.768e-05,2]
[347972118,1736256645293,-500.0,9.768e-05,2]
[347972119,1736256645302,-620.25780102,9.768e-05,2]
[347972120,1736256645312,-500.0,9.768e-05,2]
[347972121,1736256645321,-559.06,9.768e-05,2]
[347972122,1736256645330,-984.83,9.768e-05,2]
[347972123,1736256645339,-500.0,9.768e-05,2]
[347972124,1736256645348,-539.93,9.768e-05,2]
[347972125,1736256645357,-500.0,9.768e-05,2]
[347972126,1736256645366,-500.0,9.768e-05,2]
[347972127,1736256645376,-500.0,9.768e-05,2]
[347972128,1736256645385,-500.0,9.768e-05,2]
[347972129,1736256645394,-500.0,9.768e-05,2]
[347972130,1736256645404,-500.0,9.768e-05,2]
[347972131,1736256645413,-500.0,9.768e-05,2]
[347972132,1736256645423,-500.0,9.768e-05,2]
[347972133,1736256645432,-337.14572154,9.768e-05,2]
[347972134,1736256645441,-500.0,9.768e-05,2]
[347972135,1736256645451,-500.0,9.768e-05,2]
[347972136,1736256645461,-500.0,9.768e-05,2]
[347972137,1736256645470,-500.0,9.768e-05,2]
[347972138,1736256645479,-500.0,9.768e-05,2]
[347972139,1736256645488,-500.0,9.768e-05,2]
[347972140,1736256645498,-42.64152471,9.768e-05,2]
[347972141,1736256645574,-785.54847529,9.768e-05,2]
[347972142,1736256645584,-500.0,9.768e-05,2]
[347972143,1736256645594,-500.0,9.768e-05,2]
[347972144,1736256645603,-500.0,9.768e-05,2]
[347972145,1736256645613,-500.0,9.768e-05,2]
[347972146,1736256645622,-500.0,9.768e-05,2]
[347972147,1736256645631,-500.0,9.768e-05,2]
[347972148,1736256645640,-500.0,9.768e-05,2]
[347972149,1736256645649,-500.0,9.768e-05,2]
[347972150,1736256645658,-500.0,9.768e-05,2]
[347972151,1736256645668,-500.0,9.768e-05,2]
[347972152,1736256645678,-639.05,9.768e-05,2]
[347972153,1736256645687,-500.0,9.768e-05,2]
[347972154,1736256645696,-519.96,9.768e-05,2]
[347972155,1736256645706,-500.0,9.768e-05,2]
[347972156,1736256645715,-500.0,9.768e-05,2]
[347972157,1736256645724,-500.0,9.768e-05,2]
[347972158,1736256645733,-559.06,9.768e-05,2]
[347972159,1736256645744,-500.0,9.768e-05,2]
[347972160,1736256645753,-500.0,9.768e-05,2]
[347972161,1736256645762,-730.11,9.768e-05,2]
[347972162,1736256645771,-500.0,9.768e-05,2]
[347972163,1736256645781,-500.0,9.768e-05,2]
[347972164,1736256645791,-923.03,9.768e-05,2]
[347972165,1736256645800,-500.0,9.768e-05,2]
[347972166,1736256645809,-500.0,9.768e-05,2]
[347972167,1736256645818,-500.0,9.768e-05,2]
[347972168,1736256645827,-500.0,9.768e-05,2]
[347972169,1736256645836,-500.0,9.768e-05,2]
[347972170,1736256645845,-500.0,9.768e-05,2]
[347972171,1736256645855,-1669.41,9.768e-05,2]
[347972172,1736256645864,-500.0,9.768e-05,2]
[347972173,1736256645873,-554.65,9.768e-05,2]
[347972174,1736256645883,-500.0,9.768e-05,2]
[347972175,1736256645892,-500.0,9.768e-05,2]
[347972176,1736256645901,-500.0,9.768e-05,2]
[347972177,1736256645911,-500.0,9.768e-05,2]
[347972178,1736256645921,-500.0,9.768e-05,2]
[347972179,1736256645930,-500.0,9.768e-05,2]
[347972180,1736256645940,-500.0,9.768e-05,2]
[347972181,1736256645950,-500.0,9.768e-05,2]
[347972182,1736256645959,-529.37,9.768e-05,2]
[347972183,1736256645968,-500.0,9.768e-05,2]
[347972184,1736256645977,-500.0,9.768e-05,2]
[347972185,1736256645986,-2293.39,9.768e-05,2]
[347972186,1736256645995,-500.0,9.768e-05,2]
[347972187,1736256646004,-519.96,9.768e-05,2]
[347972188,1736256646013,-2121.89,9.768e-05,2]
[347972189,1736256646024,-530.99,9.768e-05,2]
[347972190,1736256646033,-500.0,9.768e-05,2]
[347972191,1736256646042,-539.93,9.768e-05,2]
[347972192,1736256646051,-500.0,9.768e-05,2]
[347972193,1736256646060,-841.8,9.768e-05,2]
[347972194,1736256646070,-520.83,9.768e-05,2]
[347972195,1736256646081,-500.0,9.768e-05,2]
[347972196,1736256646091,-519.96,9.768e-05,2]
[347972197,1736256646102,-2166.14,9.768e-05,2]
[347972198,1736256646111,-500.0,9.768e-05,2]
[347972199,1736256646120,-500.0,9.768e-05,2]
[347972200,1736256646129,-500.0,9.768e-05,2]
[347972201,1736256646139,-500.0,9.768e-05,2]
[347972202,1736256646148,-584.15,9.768e-05,2]
[347972203,1736256646157,-500.0,9.768e-05,2]
[347972204,1736256646166,-519.96,9.768e-05,2]
[347972205,1736256646176,-500.0,9.768e-05,2]
[347972206,1736256646185,-500.0,9.768e-05,2]
[347972207,1736256646195,-500.0,9.768e-05,2]
[347972208,1736256646205,-500.0,9.768e-05,2]
[347972209,1736256646214,-1016.03,9.768e-05,2]
[347972210,1736256646223,-510.95,9.768e-05,2]
[347972211,1736256646232,-500.0,9.768e-05,2]
[347972212,1736256646241,-500.0,9.768e-05,2]
[347972213,1736256646250,-500.0,9.768e-05,2]
[347972214,1736256646261,-467.59538746,9.768e-05,2]
[347972215,1736256646271,-573.52,9.768e-05,2]
[347972216,1736256646282,-500.0,9.768e-05,2]
[347972217,1736256646292,-500.0,9.768e-05,2]
[347972218,1736256646301,-500.0,9.768e-05,2]
[347972219,1736256646311,-500.0,9.768e-05,2]
[347972220,1736256646320,-500.0,9.768e-05,2]
[347972221,1736256646329,-859.33,9.768e-05,2]
[347972222,1736256646338,-500.0,9.768e-05,2]
[347972223,1736256646348,-500.0,9.768e-05,2]
[347972224,1736256646357,-500.0,9.768e-05,2]
[347972225,1736256646366,-500.0,9.768e-05,2]
[347972226,1736256646375,-500.0,9.768e-05,2]
[347972227,1736256646385,-500.0,9.768e-05,2]
[347972228,1736256646394,-596.55,9.768e-05,2]
[347972229,1736256646403,-600.36,9.768e-05,2]
[347972230,1736256646413,-500.0,9.768e-05,2]
[347972231,1736256646422,-500.0,9.768e-05,2]
[347972232,1736256646432,-993.45,9.768e-05,2]
[347972233,1736256646441,-989.34,9.768e-05,2]
[347972234,1736256646450,-220.97466428,9.768e-05,2]
[347972235,1736256646460,-500.0,9.768e-05,2]
[347972236,1736256646468,-500.0,9.768e-05,2]
[347972237,1736256646478,-500.0,9.768e-05,2]
[347972238,1736256646487,-500.0,9.768e-05,2]
[347972239,1736256646497,-500.0,9.768e-05,2]
[347972240,1736256646506,-512.34,9.768e-05,2]
[347972241,1736256646515,-1815.75,9.768e-05,2]
[347972242,1736256646526,-500.0,9.768e-05,2]
[347972243,1736256646535,-500.0,9.768e-05,2]
[347972244,1736256646545,-500.0,9.768e-05,2]
[347972245,1736256646555,-500.0,9.768e-05,2]
[347972246,1736256646564,-626.4340361,9.768e-05,2]
[347972247,1736256646574,-500.0,9.768e-05,2]
[347972248,1736256646584,-926.47,9.768e-05,2]
[347972249,1736256646593,-823.95,9.768e-05,2]
[347972250,1736256646603,-500.0,9.768e-05,2]
[347972251,1736256646612,-500.0,9.768e-05,2]
[347972252,1736256646622,-500.0,9.768e-05,2]
[347972253,1736256646632,-500.0,9.768e-05,2]
[347972254,1736256646641,-500.0,9.768e-05,2]
[347972255,1736256646651,-574.98,9.768e-05,2]
[347972256,1736256646661,-500.0,9.768e-05,2]
[347972257,1736256646670,-596.5758137,9.768e-05,2]
[347972259,1736256646680,-500.0,9.768e-05,2]
[347972261,1736256646689,-691.92,9.768e-05,2]
[347972263,1736256646699,-500.0,9.768e-05,2]
[347972265,1736256646708,-1107.67,9.768e-05,2]
[347972267,1736256646717,-539.93,9.768e-05,2]
[347972269,1736256646726,-690.37,9.768e-05,2]
[347972271,1736256646736,-500.0,9.768e-05,2]
[347972273,1736256646745,-218.1380867,9.768e-05,2]
[347972275,1736256646754,-559.89,9.768e-05,2]
[347972277,1736256646763,-543.08,9.768e-05,2]
[347972279,1736256646773,-619.79,9.768e-05,2]
[347972281,1736256646783,-725.28,9.768e-05,2]
[347972283,1736256646792,-500.0,9.768e-05,2]
[347972285,1736256646803,-500.0,9.768e-05,2]
[347972286,1736256646812,-500.0,9.768e-05,2]
[347972287,1736256646821,-500.0,9.768e-05,2]
[347972288,1736256646830,-418.24282764,9.768e-05,2]
[347972289,1736256646840,-882.07,9.768e-05,2]
[347972290,1736256647032,-500.0,9.768e-05,2]
[347972291,1736256647042,-500.0,9.768e-05,2]
[347972292,1736256647051,-1214.55,9.768e-05,2]
[347972293,1736256647061,-561.45,9.768e-05,2]
[347972294,1736256647070,-500.0,9.768e-05,2]
[347972295,1736256647080,-500.0,9.768e-05,2]
[347972296,1736256647092,-500.0,9.768e-05,2]
[347972297,1736256647101,-689.86,9.768e-05,2]
[347972298,1736256647111,-500.0,9.768e-05,2]
[347972299,1736256647120,-500.0,9.768e-05,2]
[347972300,1736256647131,-500.0,9.768e-05,2]
[347972301,1736256647140,-500.0,9.768e-05,2]
[347972302,1736256647150,-500.0,9.768e-05,2]
[347972303,1736256647162,-500.0,9.768e-05,2]
[347972304,1736256647171,-500.0,9.768e-05,2]
[347972305,1736256647181,-539.11,9.768e-05,2]
[347972306,1736256647192,-500.0,9.768e-05,2]
[347972307,1736256647201,-979.95,9.768e-05,2]
[347972308,1736256647210,-1527.16,9.768e-05,2]
[347972309,1736256647220,-285.30898531,9.768e-05,2]
[347972310,1736256647229,-736.64,9.768e-05,2]
[347972311,1736256647239,-500.0,9.768e-05,2]
[347972312,1736256647249,-500.0,9.768e-05,2]
[347972313,1736256647261,-500.0,9.768e-05,2]
[347972314,1736256647272,-500.0,9.768e-05,2]
[347972315,1736256647282,-623.86,9.768e-05,2]
[347972316,1736256647291,-626.69701753,9.768e-05,2]
[347972317,1736256647301,-500.0,9.768e-05,2]
[347972318,1736256647311,-789.77,9.768e-05,2]
[347972319,1736256647320,-538.76,9.768e-05,2]
[347972320,1736256647329,-500.0,9.768e-05,2]
[347972321,1736256647338,-500.0,9.768e-05,2]
[347972322,1736256647347,-500.0,9.768e-05,2]
[347972323,1736256647356,-999.4,9.768e-05,2]
[347972324,1736256647366,-500.0,9.768e-05,2]
[347972325,1736256647375,-500.0,9.768e-05,2]
[347972326,1736256647384,-500.0,9.768e-05,2]
[347972327,1736256647394,-500.0,9.768e-05,2]
[347972328,1736256647403,-500.0,9.768e-05,2]
[347972329,1736256647413,-500.0,9.768e-05,2]
[347972330,1736256647423,-500.0,9.768e-05,2]
[347972331,1736256647432,-619.79,9.768e-05,2]
[347972332,1736256647441,-500.0,9.768e-05,2]
[347972333,1736256647450,-719.18,9.768e-05,2]
[347972334,1736256647460,-600.69,9.768e-05,2]
[347972335,1736256647469,-500.0,9.768e-05,2]
[347972336,1736256647479,-500.0,9.768e-05,2]
[347972337,1736256647488,-500.0,9.768e-05,2]
[347972338,1736256647497,-610.59,9.768e-05,2]
[347972339,1736256647507,-500.0,9.768e-05,2]
[347972340,1736256647516,-500.0,9.768e-05,2]
[347972341,1736256647528,-500.0,9.768e-05,2]
[347972342,1736256647537,-500.0,9.768e-05,2]
[347972343,1736256647546,-500.0,9.768e-05,2]
[347972344,1736256647556,-500.0,9.768e-05,2]
[347972345,1736256647565,-500.0,9.768e-05,2]
[347972346,1736256647574,-1289.88,9.768e-05,2]
[347972347,1736256647583,-921.74,9.768e-05,2]
[347972348,1736256647593,-500.0,9.768e-05,2]
[347972349,1736256647604,-500.0,9.768e-05,2]
[347972350,1736256647613,-500.0,9.768e-05,2]
[347972351,1736256647623,-500.0,9.768e-05,2]
[347972352,1736256647632,-500.0,9.768e-05,2]
[347972353,1736256647642,-1401.2,9.768e-05,2]
[347972354,1736256647651,-500.0,9.768e-05,2]
[347972355,1736256647660,-500.0,9.768e-05,2]
[347972356,1736256647670,-500.0,9.768e-05,2]
[347972357,1736256647679,-500.0,9.768e-05,2]
[347972358,1736256647688,-500.0,9.768e-05,2]
[347972359,1736256647698,-886.48,9.768e-05,2]
[347972360,1736256647707,-500.0,9.768e-05,2]
[347972361,1736256647716,-500.0,9.768e-05,2]
[347972362,1736256647726,-653.57,9.768e-05,2]
[347972363,1736256647735,-541.66,9.768e-05,2]
[347972364,1736256647745,-500.0,9.768e-05,2]
[347972365,1736256647754,-500.0,9.768e-05,2]
[347972366,1736256647763,-501.68291369,9.768e-05,2]
[347972367,1736256647774,-500.0,9.768e-05,2]
[347972368,1736256647784,-500.0,9.768e-05,2]
[347972369,1736256647793,-500.0,9.768e-05,2]
[347972370,1736256647803,-500.0,9.768e-05,2]
[347972371,1736256647812,-500.0,9.768e-05,2]
[347972372,1736256647821,-500.0,9.768e-05,2]
[347972373,1736256647830,-1501.43,9.768e-05,2]
[347972374,1736256647840,-500.0,9.768e-05,2]
[347972375,1736256647849,-500.0,9.768e-05,2]
[347972376,1736256647859,-500.0,9.768e-05,2]
[347972377,1736256647868,-500.0,9.768e-05,2]
[347972378,1736256647877,-500.0,9.768e-05,2]
[347972379,1736256647887,-500.0,9.768e-05,2]
[347972380,1736256647896,-500.0,9.768e-05,2]
[347972381,1736256647905,-500.0,9.768e-05,2]
[347972382,1736256647914,-500.0,9.768e-05,2]
[347972383,1736256647923,-500.0,9.768e-05,2]
[347972384,1736256647932,-500.0,9.768e-05,2]
[347972385,1736256647941,-546.34,9.768e-05,2]
[347972386,1736256647951,-500.0,9.768e-05,2]
[347972387,1736256647960,-249.73402863,9.768e-05,2]
[347972388,1736256647969,-712.08,9.768e-05,2]
[347972389,1736256647978,-500.0,9.768e-05,2]
[347972390,1736256647987,-500.0,9.768e-05,2]
[347972391,1736256647997,-500.0,9.768e-05,2]
[347972392,1736256648006,-500.0,9.768e-05,2]
[347972393,1736256648016,-500.0,9.768e-05,2]
[347972394,1736256648027,-810.65,9.768e-05,2]
[347972395,1736256648036,-1245.83,9.768e-05,2]
[347972396,1736256648046,-500.0,9.768e-05,2]
[347972397,1736256648055,-583.51,9.768e-05,2]
[347972398,1736256648065,-500.0,9.768e-05,2]
[347972399,1736256648074,-500.0,9.768e-05,2]
[347972400,1736256648088,-325.44750405,9.768e-05,2]
[347972401,1736256648097,-906.25,9.768e-05,2]
[347972402,1736256648107,-631.6,9.768e-05,2]
[347972403,1736256648116,-500.0,9.768e-05,2]
[347972404,1736256648125,-1134.01,9.768e-05,2]
[347972405,1736256648135,-500.0,9.768e-05,2]
[347972406,1736256648144,-515.45592512,9.768e-05,2]
[347972407,1736256648153,-500.0,9.768e-05,2]
[347972408,1736256648163,-500.0,9.768e-05,2]
[347972409,1736256648172,-579.02,9.768e-05,2]
[347972410,1736256648181,-500.0,9.768e-05,2]
[347972411,1736256648191,-500.0,9.768e-05,2]
[347972412,1736256648201,-235.79183501,9.768e-05,2]
[347972413,1736256648211,-500.0,9.768e-05,2]
[347972414,1736256648221,-500.0,9.768e-05,2]
[347972415,1736256648230,-5471.07,9.768e-05,2]
[347972416,1736256648240,-500.0,9.768e-05,2]
[347972417,1736256648249,-972.59,9.768e-05,2]
[347972418,1736256648260,-500.0,9.768e-05,2]
[347972419,1736256648270,-796.11,9.768e-05,2]
[347972420,1736256648282,-1269.84,9.768e-05,2]
[347972421,1736256648292,-500.0,9.768e-05,2]
[347972422,1736256648301,-500.0,9.768e-05,2]
[347972423,1736256648311,-500.0,9.768e-05,2]
[347972424,1736256648321,-784.1,9.768e-05,2]
[347972425,1736256648331,-500.0,9.768e-05,2]
[347972426,1736256648340,-589.29,9.768e-05,2]
[347972427,1736256648349,-500.0,9.768e-05,2]
[347972428,1736256648359,-500.0,9.768e-05,2]
[347972429,1736256648368,-500.0,9.768e-05,2]
[347972430,1736256648378,-500.0,9.768e-05,2]
[347972431,1736256648387,-660.3,9.768e-05,2]
[347972432,1736256648396,-500.0,9.768e-05,2]
[347972433,1736256648406,-500.0,9.768e-05,2]
[347972434,1736256648415,-500.0,9.768e-05,2]
[347972435,1736256648424,-1594.38,9.768e-05,2]
[347972436,1736256648433,-539.18331874,9.768e-05,2]
[347972437,1736256648443,-500.0,9.768e-05,2]
[347972438,1736256648453,-500.0,9.768e-05,2]
[347972439,1736256648463,-500.0,9.768e-05,2]
[347972440,1736256648473,-6155.18,9.768e-05,2]
[347972441,1736256648482,-808.36,9.768e-05,2]
[347972442,1736256648492,-500.0,9.768e-05,2]
[347972443,1736256648502,-500.0,9.768e-05,2]
[347972444,1736256648511,-796.67,9.768e-05,2]
[347972445,1736256648521,-500.0,9.768e-05,2]
[347972446,1736256648533,-500.0,9.768e-05,2]
[347972447,1736256648543,-500.0,9.768e-05,2]
[347972448,1736256648552,-500.0,9.768e-05,2]
[347972449,1736256648562,-500.0,9.768e-05,2]
[347972450,1736256648572,-685.22,9.768e-05,2]
[347972451,1736256648582,-500.0,9.768e-05,2]
[347972452,1736256648592,-702.66,9.768e-05,2]
[347972453,1736256648601,-500.0,9.768e-05,2]
[347972454,1736256648611,-500.0,9.768e-05,2]
[347972455,1736256648621,-560.76,9.768e-05,2]
[347972456,1736256648631,-500.0,9.768e-05,2]
[347972457,1736256648641,-500.0,9.768e-05,2]
[347972458,1736256648651,-500.0,9.768e-05,2]
[347972459,1736256648660,-500.0,9.768e-05,2]
[347972460,1736256648670,-667.96,9.768e-05,2]
[347972461,1736256648680,-500.0,9.768e-05,2]
[347972462,1736256648690,-811.0,9.768e-05,2]
[347972463,1736256648700,-1558.67,9.768e-05,2]
[347972464,1736256648709,-500.0,9.768e-05,2]
[347972465,1736256648720,-503.90641508,9.768e-05,2]
[347972466,1736256648730,-1005.01,9.768e-05,2]
[347972467,1736256648740,-579.02,9.768e-05,2]
[347972468,1736256648751,-500.0,9.768e-05,2]
[347972469,1736256648761,-555.38,9.768e-05,2]
[347972470,1736256648771,-744.65,9.768e-05,2]
[347972471,1736256648785,-500.0,9.768e-05,2]
[347972472,1736256648794,-479.81330741,9.768e-05,2]
[347972473,1736256648804,-533.21,9.768e-05,2]
[347972474,1736256648814,-582.07,9.768e-05,2]
[347972475,1736256648824,-500.0,9.768e-05,2]
[347972476,1736256648833,-500.0,9.768e-05,2]
[347972477,1736256648843,-618.12,9.768e-05,2]
[347972478,1736256648853,-990.81,9.768e-05,2]
[347972479,1736256648863,-500.0,9.768e-05,2]
[347972480,1736256648874,-500.0,9.768e-05,2]
[347972481,1736256648883,-500.0,9.768e-05,2]
[347972482,1736256648894,-561.37,9.768e-05,2]
[347972483,1736256648904,-500.0,9.768e-05,2]
[347972484,1736256648915,-500.0,9.768e-05,2]
[347972485,1736256648925,-1162.68,9.768e-05,2]
[347972486,1736256648934,-563.59,9.768e-05,2]
[347972487,1736256648944,-5230.59,9.768e-05,2]
[347972488,1736256648954,-559.89,9.768e-05,2]
[347972489,1736256648964,-1391.84,9.768e-05,2]
[347972490,1736256648974,-2171.07,9.768e-05,2]
[347972491,1736256648984,-500.0,9.768e-05,2]
[347972492,1736256648994,-500.0,9.768e-05,2]
[347972493,1736256649004,-500.0,9.768e-05,2]
[347972494,1736256649014,-500.0,9.768e-05,2]
[347972495,1736256649026,-500.0,9.768e-05,2]
[347972496,1736256649037,-500.0,9.768e-05,2]
[347972497,1736256649049,-642.06,9.768e-05,2]
[347972498,1736256649059,-504.98,9.768e-05,2]
[347972499,1736256649070,-1797.21,9.768e-05,2]
[347972500,1736256649081,-548.59,9.768e-05,2]
[347972501,1736256649092,-500.0,9.768e-05,2]
[347972502,1736256649103,-500.0,9.768e-05,2]
[347972503,1736256649112,-500.0,9.768e-05,2]
[347972504,1736256649124,-3015.07,9.768e-05,2]
[347972505,1736256649134,-500.0,9.768e-05,2]
[347972506,1736256649146,-500.0,9.768e-05,2]
[347972507,1736256649159,-500.0,9.768e-05,2]
[347972508,1736256649169,-500.0,9.768e-05,2]
[347972509,1736256649179,-500.0,9.768e-05,2]
[347972510,1736256649188,-1538.13,9.768e-05,2]
[347972511,1736256649198,-500.0,9.768e-05,2]
[347972512,1736256649208,-623.17,9.768e-05,2]
[347972513,1736256649217,-992.69,9.768e-05,2]
[347972514,1736256649228,-500.0,9.768e-05,2]
[347972515,1736256649239,-573.53,9.768e-05,2]
[347972516,1736256649249,-500.0,9.768e-05,2]
[347972517,1736256649260,-500.0,9.768e-05,2]
[347972518,1736256649270,-560.76,9.768e-05,2]